bitfinex-derivatives/quotes_BTCF0:USTF0_20241226
["timestamp","ask_amount","ask_price","bid_price","bid_amount"]
[1735200672502,0.041338,96844.0,96833.0,0.050342]
[1735200672797,0.04134,96840.0,96833.0,0.018]
[1735200673396,0.001,96835.0,96833.0,0.018]
[1735200673989,0.001,96835.0,96833.0,0.059342]
[1735200674790,0.001,96835.0,96833.0,0.050342]
[1735200674994,0.001,96835.0,96833.0,0.059342]
[1735200675195,0.001,96840.0,96833.0,0.059342]
[1735200675797,0.001,96840.0,96835.0,0.041342]
[1735200676000,0.041339,96843.0,96835.0,0.041342]
[1735200676517,0.041339,96843.0,96833.0,0.018]
[1735200676799,0.001,96840.0,96837.0,0.041341]
[1735200677497,0.001,96840.0,96839.0,0.04134]
[1735200677698,0.001,96840.0,96833.0,0.018]
[1735200677900,0.041342,96834.0,96833.0,0.018]
[1735200678297,0.04457291,96834.0,96833.0,0.009]
[1735200678703,0.001,96843.0,96833.0,0.009]
[1735200678704,0.001,96843.0,96839.0,0.009]
[1735200679101,0.041334,96854.0,96839.0,0.009]
[1735200679301,0.1197989,96850.0,96833.0,0.018]
[1735200679603,4e-05,96834.0,96833.0,0.018]
[1735200679792,4e-05,96834.0,96831.0,0.03640296]
[1735200680190,4e-05,96832.0,96831.0,0.03640296]
[1735200682408,4e-05,96832.0,96831.0,0.04540296]
[1735200682409,0.00104,96832.0,96831.0,0.04540296]
[1735200683294,0.1197989,96870.0,96858.0,0.041332]
[1735200683493,0.1197989,96870.0,96831.0,0.04540296]
[1735200683494,0.041328,96868.0,96851.0,0.041335]
[1735200683705,0.1197989,96870.0,96850.0,0.15382141]
[1735200683896,4e-05,96852.0,96851.0,0.041335]
[1735200685995,4e-05,96852.0,96851.0,0.050335]
[1735200685996,0.00104,96852.0,96851.0,0.050335]
[1735200686193,0.001,96861.0,96851.0,0.009]
[1735200686394,0.001,96861.0,96860.0,0.041331]
[1735200686801,0.1197989,96883.0,96879.0,0.041323]
[1735200687202,0.1197989,96883.0,96851.0,0.309]
[1735200687203,0.1197989,96883.0,96867.0,0.041328]
[1735200687506,4e-05,96868.0,96867.0,0.041328]
[1735200688207,0.1,96900.0,96898.0,0.041315]
[1735200689603,0.1198628,96933.0,96899.0,0.11320955]
[1735200689801,0.00154803,96955.0,96920.0,0.15382141]
[1735200690110,0.00154803,96955.0,96938.0,8e-05]
[1735200691209,0.041293,96951.0,96938.0,8e-05]
[1735200691613,0.00154803,96955.0,96939.0,0.041298]
[1735200691814,0.00104,96945.0,96941.0,0.041296]
[1735200692011,0.00104,96945.0,96938.0,0.00708]
[1735200692313,4e-05,96939.0,96938.0,0.01508]
[1735200692510,4e-05,96939.0,96938.0,0.00808]
[1735200692810,4e-05,96939.0,96938.0,0.00708]
[1735200693616,4e-05,96939.0,96938.0,0.00608]
[1735200694308,4e-05,96939.0,96938.0,0.01508]
[1735200694901,1.50004,96939.0,96938.0,0.00908]
[1735200695113,1.50104,96939.0,96938.0,0.01608]
[1735200695298,0.00104,96939.0,96938.0,0.00708]
[1735200695497,0.00104,96939.0,96938.0,0.057378]
[1735200695703,4e-05,96939.0,96938.0,0.050378]
[1735200695902,0.00104,96939.0,96938.0,0.057378]
[1735200696911,4e-05,96945.0,96944.0,0.041296]
[1735200697211,0.00154803,96955.0,96954.0,0.041291]
[1735200698109,0.00154803,96955.0,96954.0,0.041371]
[1735200698499,0.01168954,96987.0,96958.0,0.04129]
[1735200698703,0.041283,96974.0,96958.0,0.04129]
[1735200699028,0.001,96955.0,96954.0,0.058291]
[1735200699311,0.00104,96955.0,96954.0,0.058291]
[1735200699702,4e-05,96955.0,96954.0,0.05024118]
[1735200699908,0.001,96974.0,96954.0,0.00895018]
[1735200700109,0.001,96974.0,96962.0,0.041288]
[1735200700518,0.001,96974.0,96964.0,0.041287]
[1735200700910,0.001,96974.0,96960.0,0.23654857]
[1735200700911,0.001,96974.0,96972.0,0.041283]
[1735200701315,0.00154746,96994.0,96961.0,0.11820205]
[1735200701517,0.00154746,96994.0,96982.0,0.041279]
[1735200701704,0.00154746,96994.0,96993.0,8e-05]
[1735200702113,0.1,97000.0,96993.0,8e-05]
[1735200702306,0.1,97000.0,96994.0,0.041274]
[1735200702813,0.1,97000.0,96994.0,0.04125457]
[1735200703422,0.00154695,97029.0,97018.0,0.041264]
[1735200703714,0.00154695,97029.0,97028.0,8e-05]
[1735200704623,0.041251,97050.0,97031.0,0.041258]
[1735200704807,0.041251,97049.0,97034.0,0.041257]
[1735200705008,0.04125,97051.0,97049.0,8e-05]
[1735200705421,0.04125,97051.0,97050.0,8e-05]
[1735200706119,0.04225,97051.0,97050.0,8e-05]
[1735200706311,0.041251,97048.0,97031.0,0.041258]
[1735200706720,4e-05,97032.0,97031.0,0.041258]
[1735200707420,0.001,97051.0,97020.0,0.23654857]
[1735200707721,0.041247,97059.0,97050.0,0.00508]
[1735200708020,0.041247,97059.0,97031.0,0.009]
[1735200708021,0.3,97059.0,97031.0,0.009]
[1735200708612,0.23654857,97060.0,97031.0,0.009]
[1735200708613,0.041251,97049.0,97031.0,0.009]
[1735200708814,0.041252,97046.0,97030.0,0.041259]
[1735200709318,4e-05,97031.0,97030.0,0.041259]
[1735200709513,4e-05,97031.0,97020.0,0.009]
[1735200709710,0.041262,97022.0,97020.0,0.009]
[1735200709922,4e-05,97021.0,97020.0,0.009]
[1735200710109,1.50004,97021.0,97020.0,0.009]
[1735200710309,1.50004,97021.0,97008.0,0.00154619]
[1735200710505,0.041268,97010.0,96979.0,0.04128]
[1735200710706,4e-05,97009.0,96999.0,0.041272]
[1735200710923,1.541263,97021.0,97020.0,0.009]
[1735200711217,0.041269,97007.0,96975.0,0.01548]
[1735200711422,0.041268,97009.0,97008.0,0.008]
[1735200711918,0.23654857,96990.0,96970.0,0.00154679]
[1735200712124,0.341268,97009.0,96970.0,0.00154679]
[1735200712125,0.041278,96985.0,96970.0,0.00154679]
[1735200712327,4e-05,96971.0,96970.0,0.04283079]
[1735200713028,0.15325895,97010.0,96986.0,0.041278]
[1735200713322,0.15325895,97040.0,96970.0,0.10953911]
[1735200713323,0.041275,96992.0,96977.0,0.041281]
[1735200713527,0.041275,96992.0,96982.0,0.041279]
[1735200713726,1.542268,97009.0,97008.0,0.006]
[1735200713915,1.542268,97009.0,97008.0,0.009]
[1735200714222,0.041268,97009.0,97008.0,0.00308]
[1735200714618,0.001,97010.0,96986.0,0.050277]
[1735200714619,0.001,96992.0,96986.0,0.050277]
[1735200714816,0.001,96992.0,96986.0,0.041277]
[1735200715811,0.001,96992.0,96982.0,0.004]
[1735200716015,0.041279,96982.0,96932.0,0.00154739]
[1735200716221,0.041296,96942.0,96932.0,0.00154739]
[1735200717025,0.23620138,96960.0,96932.0,0.00154739]
[1735200717328,0.0413,96933.0,96932.0,0.00854739]
[1735200717727,0.0413,96933.0,96915.0,0.24606128]
[1735200717728,0.041307,96916.0,96915.0,0.24606128]
[1735200718027,4e-05,96916.0,96894.0,0.0006]
[1735200718233,0.041314,96902.0,96883.0,0.3218]
[1735200718433,4e-05,96901.0,96889.0,0.01548]
[1735200718725,4e-05,96901.0,96889.0,0.041319]
[1735200719131,4e-05,96901.0,96890.0,0.041318]
[1735200719320,4e-05,96901.0,96900.0,0.103]
[1735200720025,0.001,96916.0,96900.0,0.103]
[1735200720328,0.001,96916.0,96915.0,0.041308]
[1735200720626,0.001,96916.0,96905.0,0.041312]
[1735200720818,0.001,96916.0,96910.0,0.04131]
[1735200721013,0.041304,96924.0,96910.0,0.04131]
[1735200721413,0.23620138,96920.0,96900.0,0.105]
[1735200721618,0.041314,96901.0,96900.0,0.105]
[1735200721831,0.041314,96901.0,96900.0,0.1]
[1735200722228,0.041314,96901.0,96873.0,0.00056]
[1735200722229,0.041323,96879.0,96873.0,0.00056]
[1735200722430,0.041323,96879.0,96853.0,0.056854]
[1735200722633,0.041363,96879.0,96853.0,0.041334]
[1735200722821,0.041326,96873.0,96853.0,0.041334]
[1735200723026,4e-05,96879.0,96842.0,0.3267]
[1735200723027,0.041329,96866.0,96842.0,0.3267]
[1735200723231,4e-05,96855.0,96844.0,0.041338]
[1735200723540,4e-05,96855.0,96842.0,0.3267]
[1735200723732,4e-05,96855.0,96854.0,0.28739528]
[1735200723934,0.041325,96875.0,96858.0,0.041332]
[1735200724341,0.041325,96875.0,96874.0,8e-05]
[1735200725337,0.041331,96862.0,96854.0,0.007]
[1735200725637,0.041331,96862.0,96858.0,0.003]
[1735200725834,0.041326,96873.0,96858.0,0.003]
[1735200726038,0.23620138,96868.0,96772.0,0.3075766]
[1735200726237,0.23620138,96844.0,96791.0,0.04136]
[1735200726428,0.041351,96815.0,96777.0,0.203967]
[1735200726633,0.041354,96808.0,96781.0,0.041365]
[1735200726936,0.23620138,96823.0,96777.0,0.1626]
[1735200726937,4e-05,96801.0,96777.0,0.1626]
[1735200727125,4e-05,96801.0,96777.0,0.1368]
[1735200727326,4e-05,96801.0,96779.0,0.041365]
[1735200727527,0.041356,96804.0,96779.0,0.041365]
[1735200728037,0.041354,96807.0,96800.0,0.002]
[1735200728232,0.001,96801.0,96800.0,0.002]
[1735200728432,0.001,96801.0,96800.0,0.00208]
[1735200728940,0.041356,96803.0,96800.0,0.00208]
[1735200729239,0.041361,96791.0,96779.0,0.004]
[1735200729435,0.23620138,96800.0,96779.0,0.004]
[1735200729631,0.23620138,96800.0,96779.0,0.011]
[1735200729944,0.041359,96797.0,96779.0,0.011]
[1735200730127,0.041359,96797.0,96779.0,0.004]
[1735200730529,0.041359,96797.0,96773.0,8e-05]
[1735200730747,0.23620138,96800.0,96773.0,8e-05]
[1735200731036,4e-05,96774.0,96773.0,8e-05]
[1735200731934,0.001,96797.0,96782.0,0.041364]
[1735200732131,0.001,96800.0,96796.0,0.041359]
[1735200732441,0.001,96797.0,96785.0,8e-05]
[1735200732646,0.001,96797.0,96794.0,0.041359]
[1735200732845,0.041348,96821.0,96788.0,0.041362]
[1735200733148,0.041348,96821.0,96806.0,8e-05]
[1735200733334,0.23775126,96850.0,96806.0,8e-05]
[1735200733647,0.041345,96828.0,96812.0,0.041352]
[1735200734237,0.001,96821.0,96789.0,0.1611]
[1735200734547,4e-05,96790.0,96789.0,0.1611]
[1735200734931,0.23620138,96820.0,96789.0,0.1611]
[1735200734932,0.001,96821.0,96789.0,0.1611]
[1735200735232,0.041352,96811.0,96795.0,0.041359]
[1735200735432,0.041352,96813.0,96793.0,0.04136]
[1735200735644,0.001,96821.0,96801.0,0.041356]
[1735200735645,0.002,96821.0,96801.0,0.041356]
[1735200735848,0.001,96821.0,96812.0,0.006]
[1735200736039,0.041351,96814.0,96812.0,0.006]
[1735200736346,0.001,96821.0,96810.0,8e-05]
[1735200736533,0.001,96811.0,96810.0,8e-05]
[1735200736736,0.001,96821.0,96820.0,0.041348]
[1735200736937,0.002,96821.0,96820.0,0.041348]
[1735200737138,0.001,96821.0,96820.0,0.041348]
[1735200737335,0.001,96821.0,96818.0,8e-05]
[1735200737849,4e-05,96819.0,96818.0,8e-05]
[1735200738737,4e-05,96819.0,96818.0,0.00108]
[1735200738738,0.041389,96819.0,96818.0,0.00108]
[1735200738933,0.041389,96819.0,96771.0,0.01552]
[1735200738934,0.30004,96819.0,96781.0,0.1571]
[1735200739130,0.041354,96807.0,96787.0,0.041362]
[1735200739337,0.001,96819.0,96787.0,0.041362]
[1735200739638,0.04135,96816.0,96787.0,0.041362]
[1735200739837,0.001,96819.0,96787.0,0.041362]
[1735200740035,1.5,96818.0,96787.0,0.041362]
[1735200740236,0.23620138,96800.0,96779.0,8e-05]
[1735200740445,0.041361,96790.0,96779.0,8e-05]
[1735200740650,0.041362,96788.0,96779.0,8e-05]
[1735200741140,0.041358,96798.0,96787.0,0.001]
[1735200741348,0.04136,96792.0,96787.0,0.001]
[1735200741731,0.04136,96792.0,96778.0,0.041366]
[1735200741937,0.001,96788.0,96779.0,0.001]
[1735200742250,0.001,96788.0,96785.0,0.041363]
[1735200742438,0.041349,96819.0,96779.0,0.301]
[1735200742637,0.041338,96844.0,96806.0,0.041354]
[1735200742838,1.5,96849.0,96812.0,0.041352]
[1735200742839,1.50052001,96849.0,96812.0,0.041352]
[1735200743141,0.041345,96829.0,96812.0,0.041352]
[1735200743341,0.00154988,96850.0,96812.0,0.3]
[1735200743544,0.00154988,96850.0,96820.0,0.23620138]
[1735200743739,0.00154988,96850.0,96841.0,0.041339]
[1735200743939,0.00154988,96850.0,96830.0,0.23620138]
[1735200744245,0.001,96849.0,96848.0,0.041336]
[1735200744752,0.001,96849.0,96841.0,0.3281]
[1735200745150,0.001,96849.0,96818.0,0.00154922]
[1735200745352,0.041342,96834.0,96821.0,0.1691]
[1735200745648,0.001,96849.0,96821.0,0.1691]
[1735200745953,0.041342,96835.0,96822.0,0.041347]
[1735200746553,0.041342,96835.0,96821.0,0.1691]
[1735200747140,0.002,96849.0,96821.0,0.1691]
[1735200747343,0.041343,96834.0,96821.0,0.1691]
[1735200747644,0.041343,96834.0,96822.0,0.002]
[1735200748051,0.001,96835.0,96822.0,0.002]
[1735200748249,0.001,96835.0,96825.0,0.041346]
[1735200748955,0.001,96834.0,96825.0,0.041346]
[1735200749550,0.001,96835.0,96826.0,0.041346]
[1735200749551,0.002,96835.0,96826.0,0.041346]
[1735200749746,0.001,96834.0,96826.0,0.041346]
[1735200750451,0.001,96835.0,96826.0,0.041346]
[1735200750649,0.001,96834.0,96826.0,0.041346]
[1735200751051,0.002,96834.0,96827.0,0.041345]
[1735200751575,0.001,96834.0,96827.0,0.041345]
[1735200752249,0.002,96834.0,96827.0,0.041345]
[1735200753652,0.002,96834.0,96827.0,0.042345]
[1735200754751,0.041345,96828.0,96827.0,0.001]
[1735200755846,0.041345,96828.0,96795.0,0.16088]
[1735200755847,0.3,96828.0,96795.0,0.16088]
[1735200756054,0.041352,96811.0,96795.0,8e-05]
[1735200756253,4e-05,96811.0,96795.0,8e-05]
[1735200756551,4e-05,96796.0,96795.0,8e-05]
[1735200757452,0.041399,96796.0,96795.0,8e-05]
[1735200757750,0.042399,96796.0,96795.0,0.00108]
[1735200758341,0.041365,96782.0,96776.0,0.00154988]
[1735200758761,4e-05,96777.0,96776.0,0.00154988]
[1735200760253,0.00104,96777.0,96776.0,0.00154988]
[1735200760955,0.001,96796.0,96776.0,0.30154988]
[1735200761154,0.1199501,96804.0,96795.0,0.041359]
[1735200761454,0.1199501,96804.0,96797.0,0.041358]
[1735200761657,0.1199501,96804.0,96780.0,0.53620138]
[1735200761858,0.1199501,96804.0,96802.0,0.041356]
[1735200762158,0.00155019,96820.0,96790.0,0.23620138]
[1735200762364,0.04135,96817.0,96810.0,0.041352]
[1735200762861,0.00155019,96820.0,96810.0,0.041352]
[1735200763066,0.00155019,96820.0,96813.0,0.041351]
[1735200763253,0.00155019,96820.0,96791.0,0.3379]
[1735200763758,0.041353,96809.0,96795.0,0.041359]
[1735200764352,0.041354,96808.0,96795.0,0.041359]
[1735200764653,0.001,96804.0,96795.0,0.041359]
[1735200765059,0.041354,96806.0,96795.0,0.041359]
[1735200765663,0.041356,96804.0,96795.0,0.041359]
[1735200765965,0.041357,96801.0,96795.0,0.041359]
[1735200766352,0.041357,96801.0,96795.0,0.042359]
[1735200767061,0.042357,96801.0,96795.0,0.042359]
[1735200767259,0.001,96801.0,96799.0,0.041357]
[1735200767857,0.00155019,96820.0,96816.0,0.04135]
[1735200768059,0.00155019,96820.0,96808.0,0.041353]
[1735200768252,0.00155019,96820.0,96799.0,0.041357]
[1735200768450,0.001,96801.0,96799.0,0.041357]
[1735200768653,0.041358,96797.0,96795.0,0.001]
[1735200769468,0.041358,96797.0,96791.0,0.3379]
[1735200769662,0.001,96801.0,96791.0,0.3379]
[1735200769853,0.04136,96794.0,96791.0,0.3379]
[1735200771359,0.001,96794.0,96793.0,0.04136]
[1735200771572,0.1199501,96815.0,96791.0,0.001]
[1735200771962,0.041354,96807.0,96798.0,0.041357]
[1735200772164,0.1199501,96815.0,96791.0,0.001]
[1735200772367,0.00323134,96814.0,96812.0,0.041351]
[1735200772564,0.04289919,96820.0,96813.0,0.041351]
[1735200772767,0.001,96815.0,96813.0,0.041351]
[1735200772970,0.041351,96814.0,96791.0,0.001]
[1735200773262,0.001,96794.0,96791.0,0.001]
[1735200773469,0.001,96815.0,96814.0,0.041351]
[1735200774361,0.1199501,96834.0,96819.0,0.041349]
[1735200774552,0.1199501,96834.0,96820.0,0.23620138]
[1735200774862,0.12149998,96850.0,96847.0,0.041337]
[1735200775054,0.12149998,96850.0,96830.0,0.23620138]
[1735200775561,0.12149998,96850.0,96846.0,0.041337]
[1735200775960,0.12149998,96850.0,96820.0,0.23620138]
[1735200776159,0.041337,96847.0,96838.0,0.04134]
[1735200776362,0.12149998,96850.0,96830.0,0.002]
[1735200776363,0.00154988,96850.0,96830.0,0.002]
[1735200776573,0.041343,96833.0,96830.0,0.043344]
[1735200777566,0.00154988,96850.0,96830.0,0.002]
[1735200777758,0.00154988,96850.0,96832.0,0.041343]
[1735200777759,0.041339,96842.0,96832.0,0.041343]
[1735200777957,0.001,96833.0,96832.0,0.041343]
[1735200778474,0.002,96833.0,96832.0,0.041343]
[1735200778765,0.002,96833.0,96830.0,0.016]
[1735200778766,0.041344,96831.0,96830.0,0.016]
[1735200778961,0.041344,96831.0,96830.0,0.007]
[1735200779566,0.041345,96828.0,96824.0,0.18317337]
[1735200779765,0.041346,96826.0,96824.0,0.18317337]
[1735200780563,0.041346,96826.0,96818.0,0.28741028]
[1735200780564,0.041346,96826.0,96818.0,0.041349]
[1735200780866,0.041347,96824.0,96818.0,0.041349]
[1735200781773,0.041347,96824.0,96815.0,6.369e-05]
[1735200782071,0.041347,96824.0,96821.0,0.041348]
[1735200782568,0.042347,96824.0,96821.0,0.041348]
[1735200782869,0.043347,96824.0,96821.0,0.041348]
[1735200783469,0.001,96824.0,96821.0,0.041348]
[1735200783659,0.002,96824.0,96821.0,0.048348]
[1735200784370,0.002,96824.0,96821.0,0.057348]
[1735200785068,0.001,96824.0,96821.0,0.007]
[1735200785256,0.002,96824.0,96822.0,0.041347]
[1735200785457,0.041347,96823.0,96821.0,0.016]
[1735200785659,0.041347,96823.0,96821.0,0.007]
[1735200785869,0.041347,96823.0,96815.0,6.369e-05]
[1735200785870,0.04135,96816.0,96815.0,1e-08]
[1735200786279,0.041351,96814.0,96813.0,0.10739761]
[1735200786460,1.541351,96814.0,96813.0,0.10739761]
[1735200786661,0.041355,96804.0,96801.0,0.24606128]
[1735200786862,1.5,96814.0,96801.0,0.24606128]
[1735200787175,0.041356,96802.0,96801.0,0.24606128]
[1735200787373,0.01217045,96823.0,96801.0,0.24606128]
[1735200787374,0.301,96823.0,96801.0,0.24606128]
[1735200787671,0.001,96823.0,96815.0,0.04135]
[1735200788260,0.001,96823.0,96820.0,0.041348]
[1735200788474,0.001,96823.0,96822.0,0.041348]
[1735200788772,0.08999882,96825.0,96824.0,0.041347]
[1735200789883,0.01071983,96859.0,96824.0,0.041347]
[1735200789884,0.08999882,96858.0,96824.0,0.041347]
[1735200790068,0.08999882,96858.0,96812.0,0.24606128]
[1735200790069,0.041342,96836.0,96820.0,0.041348]
[1735200790260,0.001,96823.0,96820.0,0.041348]
[1735200790860,1.5,96848.0,96820.0,0.041348]
[1735200791065,0.001,96825.0,96824.0,0.003]
[1735200792070,0.001,96825.0,96820.0,0.041348]
[1735200792071,0.001,96823.0,96820.0,0.044348]
[1735200793574,0.001,96825.0,96824.0,0.003]
[1735200793776,0.041342,96835.0,96827.0,0.041345]
[1735200794473,0.041343,96834.0,96827.0,0.041345]
[1735200795068,0.041343,96834.0,96824.0,0.003]
[1735200795266,1.5,96847.0,96824.0,0.003]
[1735200795267,0.041343,96832.0,96824.0,0.003]
[1735200795469,0.041345,96829.0,96824.0,0.003]
[1735200795677,1.667,96847.0,96824.0,0.003]
[1735200795977,0.01016467,96846.0,96824.0,0.003]
[1735200796178,0.041346,96827.0,96824.0,0.003]
[1735200796382,0.041346,96827.0,96819.0,0.041349]
[1735200796563,0.041343,96833.0,96819.0,0.041349]
[1735200796767,0.041344,96831.0,96819.0,0.041349]
[1735200796964,0.041345,96830.0,96819.0,0.041349]
[1735200797168,0.08999882,96844.0,96824.0,0.004]
[1735200797369,0.041343,96834.0,96824.0,0.004]
[1735200797665,0.001,96833.0,96819.0,0.046349]
[1735200797870,0.001,96833.0,96820.0,0.15374636]
[1735200798380,0.041342,96835.0,96824.0,0.005]
[1735200798580,0.001,96844.0,96824.0,0.005]
[1735200798781,0.041343,96834.0,96824.0,0.005]
[1735200798981,0.001,96844.0,96824.0,0.005]
[1735200799285,0.041341,96837.0,96829.0,0.041344]
[1735200799487,0.001,96844.0,96824.0,0.005]
[1735200799672,0.001,96833.0,96821.0,0.041348]
[1735200800375,0.041343,96834.0,96824.0,0.004]
[1735200800578,0.15374636,96840.0,96824.0,0.004]
[1735200800775,0.041344,96831.0,96824.0,0.004]
[1735200800974,0.041344,96831.0,96821.0,0.045348]
[1735200801582,0.041344,96831.0,96823.0,0.041347]
[1735200802583,0.041344,96831.0,96824.0,0.004]
[1735200802885,0.001,96834.0,96828.0,0.041345]
[1735200803081,0.001,96831.0,96828.0,0.041345]
[1735200803588,0.041342,96836.0,96828.0,0.041345]
[1735200803884,0.001,96831.0,96828.0,0.041345]
[1735200804092,0.001,96831.0,96824.0,0.004]
[1735200804277,0.041343,96832.0,96828.0,0.003]
[1735200804676,0.00323067,96831.0,96828.0,0.003]
[1735200804870,0.041343,96832.0,96828.0,0.003]
[1735200805074,0.00323064,96831.0,96829.0,0.041345]
[1735200805287,0.041342,96835.0,96828.0,0.003]
[1735200805480,0.041343,96833.0,96828.0,0.003]
[1735200805681,0.00323054,96832.0,96828.0,0.003]
[1735200805880,0.041343,96833.0,96828.0,0.003]
[1735200806080,0.00323055,96832.0,96828.0,0.003]
[1735200806277,0.00323055,96831.0,96830.0,0.041344]
[1735200806486,0.00052001,96848.0,96830.0,0.041344]
[1735200806686,0.00052001,96848.0,96847.0,0.041337]
[1735200806879,0.1199501,96849.0,96847.0,0.041337]
[1735200807079,0.1199501,96849.0,96837.0,0.041341]
[1735200807285,0.1612861,96849.0,96829.0,0.1658]
[1735200807491,0.1199501,96849.0,96847.0,0.041336]
[1735200807688,0.00154988,96850.0,96849.0,0.041336]
[1735200809280,0.00754988,96850.0,96849.0,0.041336]
[1735200809985,0.00354988,96850.0,96849.0,0.043336]
[1735200810288,0.00154988,96850.0,96849.0,0.002]
[1735200810687,1.50154988,96850.0,96849.0,0.002]
[1735200812291,1.50154988,96850.0,96849.0,0.003]
[1735200812500,1.50154988,96850.0,96849.0,0.001]
[1735200812691,1.50154988,96850.0,96849.0,0.003]
[1735200813587,1.50154988,96850.0,96849.0,0.001]
[1735200813792,1.50154988,96850.0,96849.0,0.003]
[1735200813987,1.51364892,96850.0,96849.0,0.003]
[1735200814690,1.51364892,96850.0,96849.0,0.002]
[1735200814886,1.51364892,96850.0,96849.0,0.003]
[1735200815204,0.041349,96818.0,96817.0,0.24606128]
[1735200816286,0.15374636,96830.0,96807.0,0.24606128]
[1735200816287,0.1654,96829.0,96807.0,0.24606128]
[1735200816487,0.041354,96808.0,96807.0,0.24606128]
[1735200818394,0.04458554,96808.0,96807.0,0.002]
[1735200818787,0.04781708,96808.0,96807.0,0.002]
[1735200818998,0.04881708,96808.0,96796.0,0.041358]
[1735200819285,0.04658554,96808.0,96796.0,0.041358]
[1735200820495,0.00323153,96807.0,96796.0,0.041358]
[1735200820691,0.00323153,96806.0,96791.0,0.24606128]
[1735200820894,0.00423154,96808.0,96807.0,0.001]
[1735200821191,0.00746307,96808.0,96807.0,0.001]
[1735200821585,0.002,96807.0,96796.0,0.003]
[1735200822284,0.001,96807.0,96796.0,0.002]
[1735200822494,0.042354,96807.0,96796.0,0.002]
[1735200822789,0.00423154,96808.0,96790.0,0.1676]
[1735200823092,0.00423154,96808.0,96791.0,0.04136]
[1735200823297,0.00423154,96808.0,96801.0,0.041356]
[1735200823492,0.00423154,96808.0,96802.0,0.1673]
[1735200823803,0.041358,96798.0,96792.0,0.04136]
[1735200823986,0.041358,96798.0,96796.0,0.001]
[1735200824696,0.041358,96798.0,96792.0,0.04136]
[1735200824890,0.041358,96798.0,96796.0,0.002]
[1735200825587,0.043358,96798.0,96796.0,0.003]
[1735200826091,0.043358,96798.0,96796.0,0.001]
[1735200826297,0.043358,96798.0,96796.0,0.003]
[1735200829001,0.043358,96798.0,96789.0,0.24606128]
[1735200829002,0.043358,96798.0,96789.0,0.09175128]
[1735200829302,0.043358,96798.0,96780.0,0.3080966]
[1735200829303,0.041365,96782.0,96780.0,0.10127313]
[1735200830093,1.5032326,96781.0,96780.0,0.10127313]
[1735200830705,0.041372,96766.0,96761.0,0.172]
[1735200831695,0.041372,96766.0,96744.0,0.00012531]
[1735200831892,0.041379,96749.0,96744.0,0.00012531]
[1735200832095,0.15374636,96754.0,96744.0,0.00012531]
[1735200832096,0.04138,96745.0,96744.0,0.00012531]
[1735200832490,0.041377,96753.0,96744.0,0.00012531]
[1735200833202,0.001,96766.0,96744.0,0.00012531]
[1735200833396,0.001,96766.0,96765.0,0.041372]
[1735200833696,0.002,96766.0,96765.0,0.041372]
[1735200833896,0.09030732,96787.0,96750.0,0.15374636]
[1735200834086,0.13167032,96787.0,96772.0,0.041369]
[1735200834290,0.15374636,96782.0,96776.0,0.041367]
[1735200834486,0.15374636,96782.0,96773.0,0.1708]
[1735200834487,0.001,96766.0,96765.0,0.041372]
[1735200835299,0.15374636,96790.0,96781.0,0.0037]
[1735200835502,0.041348,96821.0,96808.0,0.041353]
[1735200835700,0.09030732,96811.0,96810.0,0.041353]
[1735200835904,0.09030732,96811.0,96805.0,0.15374636]
[1735200836103,0.09030732,96811.0,96801.0,0.041356]
[1735200836305,0.09030732,96811.0,96790.0,0.15374636]
[1735200836503,0.041354,96807.0,96795.0,0.041359]
[1735200836800,0.09030732,96811.0,96790.0,0.15374636]
[1735200837001,0.09030732,96811.0,96792.0,0.04136]
[1735200837208,0.09030732,96811.0,96783.0,0.167]
[1735200837209,0.00155009,96819.0,96809.0,0.041353]
[1735200837397,0.00155009,96819.0,96811.0,0.041352]
[1735200837600,0.00155009,96819.0,96812.0,0.041352]
[1735200838403,0.00155009,96819.0,96805.0,0.041354]
[1735200838601,0.00155009,96819.0,96809.0,0.041353]
[1735200838602,0.00355009,96819.0,96809.0,0.041353]
[1735200838806,0.00355009,96819.0,96791.0,0.1625]
[1735200838807,0.00455009,96819.0,96791.0,0.1625]
[1735200839105,0.00455009,96819.0,96811.0,0.041352]
[1735200839697,0.00455009,96819.0,96791.0,0.1625]
[1735200840004,0.00455009,96819.0,96817.0,0.041349]
[1735200840200,0.00355009,96819.0,96817.0,0.041349]
[1735200840393,0.09030732,96838.0,96818.0,0.3215]
[1735200840597,0.09030732,96838.0,96821.0,0.041348]
[1735200840802,0.09030732,96838.0,96833.0,0.041343]
[1735200841203,0.09030732,96838.0,96825.0,0.041346]
[1735200841503,0.09030732,96838.0,96818.0,0.3215]
[1735200841504,0.001,96819.0,96818.0,0.3215]
[1735200841713,0.001,96819.0,96817.0,0.04135]
[1735200841896,0.15374636,96835.0,96817.0,0.04135]
[1735200841897,0.041342,96834.0,96817.0,0.04135]
[1735200842098,0.041342,96834.0,96833.0,0.003]
[1735200842296,0.0445728,96834.0,96833.0,0.003]
[1735200842603,0.041342,96834.0,96833.0,0.001]
[1735200843098,1.541342,96834.0,96833.0,0.001]
[1735200843407,0.041342,96834.0,96833.0,0.001]
[1735200844206,0.15374636,96843.0,96818.0,0.002]
[1735200844411,0.01100932,96853.0,96818.0,0.002]
[1735200844412,0.041345,96828.0,96818.0,0.002]
[1735200844603,0.041349,96819.0,96818.0,0.002]